bitfinex/quotes_BTCUSD_20250922
["timestamp","ask_amount","ask_price","bid_price","bid_amount"]
[1758523024597,0.83998351,113100.0,113090.0,0.07850467]
[1758523024984,1.15666351,113100.0,113090.0,0.25535496]
[1758523025254,1.15666351,113100.0,113090.0,0.07850467]
[1758523026252,1.15666351,113100.0,113090.0,0.25535496]
[1758523026253,0.41843922,113100.0,113090.0,0.25535496]
[1758523026459,0.97978886,113100.0,113090.0,0.34062463]
[1758523026757,0.97653886,113100.0,113090.0,0.34062463]
[1758523027168,0.65993886,113100.0,113090.0,0.34062463]
[1758523027346,0.65781886,113100.0,113090.0,0.36979463]
[1758523027553,0.00086922,113100.0,113090.0,0.36979463]
[1758523027958,0.31742922,113100.0,113090.0,0.36979463]
[1758523028628,0.87877886,113100.0,113090.0,0.36979463]
[1758523029324,0.56221886,113100.0,113090.0,0.36979463]
[1758523029530,0.87869886,113100.0,113090.0,0.36979463]
[1758523030298,0.31730922,113100.0,113090.0,0.36979463]
[1758523030508,0.87865886,113100.0,113090.0,0.36979463]
[1758523031817,0.74397351,113100.0,113090.0,0.16377434]
[1758523032094,1.06029351,113100.0,113090.0,0.07850467]
[1758523032274,1.62164315,113100.0,113090.0,0.07850467]
[1758523033217,1.62164315,113100.0,113090.0,0.012]
[1758523033947,1.30632315,113100.0,113090.0,0.012]
[1758523034150,1.62264315,113100.0,113090.0,0.012]
[1758523034949,1.62264315,113100.0,113090.0,0.01]
[1758523035653,1.62364315,113100.0,113090.0,0.01]
[1758523036753,0.74597351,113100.0,113090.0,0.01]
[1758523037072,0.74300351,113100.0,113090.0,0.18685029]
[1758523037200,1.05908351,113100.0,113090.0,0.18685029]
[1758523037403,0.49773387,113100.0,113090.0,0.18685029]
[1758523037607,1.05908351,113100.0,113090.0,0.18897029]
[1758523037819,1.05908351,113100.0,113090.0,0.18685029]
[1758523038015,1.06205351,113100.0,113090.0,0.01]
[1758523038952,1.06105351,113100.0,113090.0,0.01]
[1758523039156,1.06105351,113100.0,113090.0,0.012]
[1758523039157,1.62240315,113100.0,113090.0,0.012]
[1758523039329,1.62140315,113100.0,113090.0,0.012]
[1758523039530,1.30532315,113100.0,113090.0,0.012]
[1758523039732,1.62128315,113100.0,113090.0,0.07722331]
[1758523039944,1.62128315,113100.0,113090.0,0.01]
[1758523040155,1.62228315,113100.0,113090.0,0.01]
[1758523040496,1.62328315,113100.0,113090.0,0.01]
[1758523040887,1.96328315,113100.0,113090.0,0.01]
[1758523041198,2.04855282,113100.0,113090.0,0.01]
[1758523041406,2.07855282,113100.0,113090.0,0.01]
[1758523042010,2.07843282,113100.0,113090.0,0.01]
[1758523042241,0.95573354,113100.0,113090.0,0.01]
[1758523042413,2.07843282,113100.0,113090.0,0.01]
[1758523042999,2.10858472,113100.0,113090.0,0.01]
[1758523044619,1.76157635,113100.0,113090.0,0.01]
[1758523045395,1.44573635,113100.0,113090.0,0.01]
[1758523045528,1.76137635,113100.0,113090.0,0.01]
[1758523047117,1.44573635,113100.0,113090.0,0.01]
[1758523047680,1.73114445,113100.0,113090.0,0.01]
[1758523048315,1.75773655,113100.0,113090.0,0.01]
[1758523048481,1.44217655,113100.0,113090.0,0.01]
[1758523048698,1.75765655,113100.0,113090.0,0.01]
[1758523049022,0.66648564,113100.0,113090.0,0.01]
[1758523049228,1.75765655,113100.0,113090.0,0.01]
[1758523049652,1.44217655,113100.0,113090.0,0.01]
[1758523049857,1.75761655,113100.0,113090.0,0.01]
[1758523051580,1.85471769,113100.0,113090.0,0.01]
[1758523053486,0.69663754,113100.0,113090.0,0.01]
[1758523053710,1.66730688,113100.0,113090.0,0.01195]
[1758523053917,1.64274478,113100.0,113090.0,0.01195]
[1758523054299,1.64274478,113100.0,113090.0,0.01]
[1758523054502,1.73100445,113100.0,113090.0,0.01]
[1758523055082,1.85679635,113100.0,113090.0,0.01]
[1758523055301,1.85663635,113100.0,113090.0,0.01]
[1758523058470,1.88322855,113100.0,113090.0,0.01]
[1758523059060,1.56806855,113100.0,113090.0,0.01]
[1758523059257,1.88306855,113100.0,113090.0,0.01]
[1758523059463,1.88007855,113100.0,113090.0,0.01]
[1758523060208,1.19264731,113100.0,113090.0,0.01]
[1758523060358,1.96833822,113100.0,113090.0,0.01]
[1758523061027,1.19264731,113100.0,113090.0,0.01]
[1758523061321,1.88306855,113100.0,113090.0,0.01]
[1758523062822,1.10729764,113100.0,113090.0,0.01]
[1758523063074,1.88298855,113100.0,113090.0,0.01]
[1758523063247,1.87999855,113100.0,113090.0,0.01]
[1758523063677,0.67193607,113100.0,113090.0,0.01499]
[1758523063831,1.08103478,113100.0,113090.0,0.03894]
[1758523064040,1.39583478,113100.0,113090.0,0.03894]
[1758523064955,1.39383478,113100.0,113090.0,0.30105996]
[1758523065160,1.21696013,113100.0,113090.0,0.29105996]
[1758523065333,1.21896013,113100.0,113090.0,0.29105996]
[1758523065533,1.21796013,113100.0,113090.0,0.29105996]
[1758523065733,1.21696013,113100.0,113090.0,0.29105996]
[1758523066745,1.21692013,113100.0,113090.0,0.29105996]
[1758523067038,1.21792013,113100.0,113090.0,0.29105996]
[1758523067389,1.21792013,113100.0,113090.0,0.35723931]
[1758523067689,1.21692013,113100.0,113090.0,0.35723931]
[1758523067886,1.39375478,113100.0,113090.0,0.35723931]
[1758523068148,0.12650922,113100.0,113090.0,0.35923931]
[1758523068345,0.44118922,113100.0,113090.0,0.35923931]
[1758523068894,1.21688013,113100.0,113090.0,0.35723931]
[1758523070296,1.21688013,113100.0,113090.0,0.36323931]
[1758523070729,1.21688013,113100.0,113090.0,0.36523931]
[1758523071663,0.44118922,113100.0,113090.0,0.36523931]
[1758523071969,1.21688013,113100.0,113090.0,0.36523931]
[1758523072317,0.90220013,113100.0,113090.0,0.36523931]
[1758523072546,1.21664013,113100.0,113090.0,0.36523931]
[1758523073169,0.90220013,113100.0,113090.0,0.36523931]
[1758523073469,1.21660013,113100.0,113090.0,0.36523931]
[1758523074454,1.21656013,113100.0,113090.0,0.36523931]
[1758523075114,0.90220013,113100.0,113090.0,0.36523931]
[1758523075264,1.21656013,113100.0,113090.0,0.36523931]
[1758523075619,0.12650922,113100.0,113090.0,0.36523931]
[1758523075762,0.44082922,113100.0,113090.0,0.36523931]
[1758523075983,0.44082922,113100.0,113090.0,0.34128931]
[1758523076376,1.21652013,113100.0,113090.0,0.36523931]
[1758523076586,1.21652013,113100.0,113090.0,0.37023931]
[1758523077266,1.21644013,113100.0,113090.0,0.37023931]
[1758523077602,0.03086922,113100.0,113090.0,0.37901473]
[1758523077765,0.34506922,113100.0,113090.0,0.37901473]
[1758523079645,0.34506922,113100.0,113090.0,0.37802473]
[1758523079990,0.31873889,113100.0,113090.0,0.37802473]
[1758523080731,0.31861889,113100.0,113090.0,0.37802473]
[1758523081357,0.00453889,113100.0,113090.0,0.37802473]
[1758523081599,0.31861889,113100.0,113090.0,0.37802473]
[1758523081746,0.00453889,113100.0,113090.0,0.40817663]
[1758523082464,0.00453889,113100.0,113090.0,0.37802473]
[1758523083690,0.7802298,113100.0,113090.0,0.36928931]
[1758523084042,0.00453889,113100.0,113090.0,0.36928931]
[1758523085671,0.00453889,113100.0,113090.0,0.70928931]
[1758523086451,0.00453889,113100.0,113090.0,0.73944121]
[1758523089396,0.00703676,113110.0,113100.0,0.51683465]
[1758523089636,0.00717747,113110.0,113100.0,0.94200432]
[1758523089777,0.00717747,113110.0,113100.0,0.94412432]
[1758523090726,0.58082155,113110.0,113100.0,0.63040432]
[1758523091433,0.58082155,113110.0,113100.0,0.60744432]
[1758523091642,0.58283155,113110.0,113100.0,0.63329432]
[1758523091856,0.58283155,113110.0,113100.0,0.60622432]
[1758523092070,0.89639155,113110.0,113100.0,0.26410432]
[1758523092286,0.89945155,113110.0,113100.0,0.26410432]
[1758523092631,0.89639155,113110.0,113100.0,0.26410432]
[1758523092847,0.89639155,113110.0,113100.0,0.28995432]
[1758523093802,1.07627057,113110.0,113100.0,0.08726967]
[1758523094252,0.76271057,113110.0,113100.0,0.08726967]
[1758523094401,1.07615057,113110.0,113100.0,0.08726967]
[1758523097886,0.76271057,113110.0,113100.0,0.08726967]
[1758523098084,0.58589155,113110.0,113100.0,0.26410432]
[1758523098394,0.89917155,113110.0,113100.0,0.26410432]
[1758523098957,0.58283155,113110.0,113100.0,0.26610432]
[1758523099154,0.32041747,113110.0,113100.0,0.29298432]
[1758523099371,0.89406155,113110.0,113100.0,0.29298432]
[1758523099543,0.58082155,113110.0,113100.0,0.29298432]
[1758523100284,0.89406155,113110.0,113100.0,0.29298432]
[1758523100483,0.00717747,113110.0,113100.0,0.29298432]
[1758523101264,0.00717747,113110.0,113100.0,0.63298432]
[1758523105827,0.00717747,113110.0,113100.0,0.94594432]
[1758523106854,0.00717747,113110.0,113100.0,0.63298432]
[1758523107069,0.00717747,113110.0,113100.0,0.94586432]
[1758523108359,0.0004,113120.0,113110.0,0.54697092]
[1758523108561,0.0004,113120.0,113110.0,0.65831059]
[1758523108721,0.0004,113120.0,113110.0,0.66047059]
[1758523108917,0.0304,113130.0,113120.0,0.17680339]
[1758523109146,0.0304,113130.0,113120.0,0.60094306]
[1758523109351,0.0304,113130.0,113120.0,0.60310306]
[1758523110415,0.0304,113130.0,113120.0,0.60810306]
[1758523110855,0.0304,113130.0,113120.0,0.29530306]
[1758523111078,0.0304,113130.0,113120.0,0.60806306]
[1758523111475,0.0304,113130.0,113120.0,0.60306306]
[1758523111904,0.0304,113130.0,113120.0,0.60298306]
[1758523112408,0.0304,113130.0,113120.0,0.60798306]
[1758523112717,0.0304,113130.0,113120.0,0.61898306]
[1758523112915,0.0304,113130.0,113120.0,0.61398306]
[1758523113412,0.0304,113130.0,113120.0,0.61898306]
[1758523116773,0.02337253,113130.0,113120.0,0.61898306]
[1758523116977,0.0004,113140.0,113130.0,0.18140591]
[1758523117155,0.0004,113140.0,113130.0,0.29274558]
[1758523117315,0.0004,113140.0,113130.0,0.29490558]
[1758523117971,0.0004,113140.0,113130.0,0.32505748]
[1758523118127,0.0004,113140.0,113130.0,0.32805748]
[1758523119189,0.0004,113140.0,113130.0,0.33605748]
[1758523120002,0.0004,113150.0,113140.0,0.54692404]
[1758523120216,0.00016066,113150.0,113140.0,0.97062371]
[1758523120455,0.00016066,113150.0,113140.0,1.03809101]
[1758523121297,0.00016066,113150.0,113140.0,1.03909101]
[1758523121750,0.03696463,113160.0,113150.0,0.51675651]
[1758523121915,0.03696463,113160.0,113150.0,0.60202618]
[1758523122114,0.03696463,113160.0,113150.0,0.63025618]
[1758523122861,0.03696463,113160.0,113150.0,0.66932578]
[1758523123078,0.03696463,113160.0,113150.0,0.67632578]
[1758523123813,0.03696463,113160.0,113150.0,0.98844578]
[1758523124041,0.03696463,113160.0,113150.0,0.99144578]
[1758523124668,0.46868792,113160.0,113150.0,0.62094388]
[1758523125325,0.03886463,113160.0,113150.0,0.93518388]
[1758523125540,0.03686463,113160.0,113150.0,0.96125388]
[1758523126634,0.03686463,113160.0,113150.0,0.64917388]
[1758523126834,0.03686463,113160.0,113150.0,0.96117388]
[1758523127469,0.03686463,113160.0,113150.0,0.99132578]
[1758523129165,0.0004,113170.0,113150.0,0.99132578]
[1758523129394,0.0004,113170.0,113160.0,0.65823246]
[1758523129772,0.0004,113170.0,113160.0,0.66039246]
[1758523131332,0.0004,113170.0,113160.0,0.66339246]
[1758523131563,0.0004,113180.0,113170.0,0.54687718]
[1758523131772,0.0004,113180.0,113170.0,0.97213685]
[1758523132629,0.0038632,113190.0,113180.0,0.64686156]
[1758523132834,0.00689248,113210.0,113200.0,0.51667844]
[1758523133045,0.00703316,113210.0,113200.0,0.91366811]
[1758523133220,0.00903316,113210.0,113200.0,0.91366811]
[1758523133442,0.00903316,113210.0,113200.0,0.92251367]
[1758523133885,0.01214316,113210.0,113200.0,0.08526967]
[1758523134043,0.44196645,113210.0,113200.0,0.08926967]
[1758523134211,0.93026928,113210.0,113200.0,0.08926967]
[1758523134627,0.93026928,113210.0,113200.0,0.004]
[1758523134866,0.93026928,113210.0,113200.0,0.007]
[1758523135224,0.93026928,113210.0,113200.0,0.003]
[1758523135639,0.32870316,113210.0,113200.0,0.17967844]
[1758523135852,0.93018928,113210.0,113200.0,0.17967844]
[1758523136259,0.93318928,113210.0,113200.0,0.003]
[1758523136464,0.93318928,113210.0,113200.0,0.17967844]
[1758523136685,1.06280379,113210.0,113200.0,0.17967844]
[1758523136887,1.06280379,113210.0,113200.0,0.17667844]
[1758523137125,1.06280379,113210.0,113190.0,0.17669057]
[1758523137289,0.74813379,113210.0,113200.0,0.17667844]
[1758523137638,1.05961379,113210.0,113190.0,0.08526967]
[1758523137786,0.49134844,113200.0,113190.0,0.08526967]
[1758523138007,0.17670446,113190.0,113180.0,0.17670963]
[1758523138229,1.05285226,113190.0,113180.0,0.2619793]
[1758523138886,0.74141226,113190.0,113180.0,0.2619793]
[1758523139297,0.8761078,113190.0,113180.0,0.2669793]
[1758523139495,1.05280185,113190.0,113180.0,0.2619793]
[1758523139712,0.74140185,113190.0,113180.0,0.2619793]
[1758523139919,1.05276185,113190.0,113180.0,0.2639793]
[1758523140121,1.05276185,113190.0,113180.0,0.08626967]
[1758523140435,1.05376185,113190.0,113180.0,0.08626967]
[1758523140915,0.74240185,113190.0,113180.0,0.08626967]
[1758523141124,1.05376185,113190.0,113180.0,0.08626967]
[1758523141627,0.49432405,113190.0,113180.0,0.08626967]
[1758523141855,0.49432405,113190.0,113180.0,0.26297933]
[1758523142056,0.8769878,113190.0,113180.0,0.26297933]
[1758523142268,1.05368185,113190.0,113180.0,0.26297933]
[1758523142816,1.05368185,113190.0,113180.0,0.08626967]
[1758523143016,0.74240185,113190.0,113180.0,0.08626967]
[1758523143146,1.05368185,113190.0,113180.0,0.08626967]
[1758523143693,1.05368185,113190.0,113180.0,0.26297933]
[1758523143929,0.00627,113190.0,113180.0,0.26297933]
[1758523144157,0.5624778,113190.0,113180.0,0.26297933]
[1758523144409,0.31424,113190.0,113180.0,0.28943933]
[1758523144601,0.001,113190.0,113180.0,0.63249933]
[1758523148024,0.00304,113190.0,113180.0,0.60499933]
[1758523148249,0.5657078,113190.0,113180.0,0.42626967]
[1758523148445,0.74240185,113190.0,113180.0,0.26297933]
[1758523149754,0.74240185,113190.0,113180.0,0.09626967]
[1758523150781,0.74240185,113190.0,113180.0,0.27297933]
[1758523151310,0.74240185,113190.0,113180.0,0.09626967]
[1758523151840,0.83792185,113190.0,113180.0,0.011]
[1758523153497,1.38743859,113190.0,113180.0,0.011]
[1758523154003,1.41401199,113190.0,113180.0,0.011]
[1758523154462,1.41401199,113190.0,113180.0,0.0004341]
[1758523154784,1.72481199,113190.0,113180.0,0.0004341]
[1758523154984,1.77481199,113190.0,113180.0,0.0004341]
[1758523156120,1.77381199,113190.0,113180.0,0.0004341]
[1758523156315,1.47701199,113190.0,113180.0,0.0004341]
[1758523156518,0.17674089,113160.0,113150.0,0.07126631]
[1758523156745,1.42909869,113160.0,113150.0,0.07126631]
[1758523156992,1.43428869,113160.0,113150.0,0.07126631]
[1758523157357,1.12356869,113160.0,113150.0,0.07126631]
[1758523157562,1.43428869,113160.0,113150.0,0.07126631]
[1758523157794,0.17677214,113140.0,113130.0,0.07126631]
[1758523158116,0.83385994,113140.0,113130.0,0.09606697]
[1758523158353,1.14453994,113140.0,113130.0,0.09606697]
[1758523158569,1.14453994,113140.0,113130.0,0.07350697]
[1758523158903,1.14453994,113140.0,113130.0,0.00224066]
[1758523159119,1.14453994,113140.0,113130.0,0.17902842]
[1758523159325,1.14453994,113140.0,113130.0,0.20158842]
[1758523159585,0.40616,113140.0,113130.0,0.20475842]
[1758523159764,0.6549578,113140.0,113130.0,0.29002809]
[1758523159918,0.6549578,113140.0,113130.0,0.3580158]
[1758523159919,0.09552,113140.0,113130.0,0.3580158]
[1758523160111,0.40616,113140.0,113130.0,0.3590158]
[1758523160749,0.9416378,113160.0,113150.0,0.17675651]
[1758523160993,1.2522378,113160.0,113150.0,0.28985618]
[1758523161214,0.9416378,113160.0,113150.0,0.28985618]
[1758523161624,1.2522378,113160.0,113150.0,0.28985618]
[1758523161840,0.9426378,113160.0,113150.0,0.28985618]
[1758523162430,1.2531978,113160.0,113150.0,0.28985618]
[1758523162646,1.2601978,113160.0,113150.0,0.28985618]
[1758523163152,1.2601978,113160.0,113150.0,0.28989618]
[1758523163518,0.87750089,113160.0,113150.0,0.28989618]
[1758523163688,1.43693869,113160.0,113150.0,0.28989618]
[1758523164262,2.00156649,113160.0,113150.0,4e-05]
[1758523164464,2.45698806,113160.0,113150.0,4e-05]
[1758523165004,2.14642806,113160.0,113150.0,4e-05]
[1758523165226,2.45690806,113160.0,113150.0,4e-05]
[1758523166117,1.89747026,113160.0,113150.0,4e-05]
[1758523166308,2.45690806,113160.0,113150.0,4e-05]
[1758523167403,1.89747026,113160.0,113150.0,4e-05]
[1758523167610,2.54217773,113160.0,113150.0,4e-05]
[1758523168678,2.22472616,113160.0,113150.0,4e-05]
[1758523170188,2.22455616,113160.0,113150.0,4e-05]
[1758523170539,2.13928649,113160.0,113150.0,4e-05]
[1758523170739,2.13908649,113160.0,113150.0,4e-05]
[1758523171560,1.82880649,113160.0,113150.0,4e-05]
[1758523171716,2.13908649,113160.0,113150.0,4e-05]
[1758523175591,2.13896649,113160.0,113150.0,4e-05]
[1758523175884,1.42688383,113160.0,113150.0,0.0021]
[1758523176082,0.87681089,113160.0,113150.0,0.02889]
[1758523176293,1.65165416,113160.0,113150.0,0.02889]
[1758523178250,1.65379416,113160.0,113150.0,0.0021]
[1758523178460,1.65672416,113160.0,113150.0,4e-05]
[1758523179556,2.11214573,113160.0,113150.0,4e-05]
[1758523180595,2.18530833,113160.0,113150.0,4e-05]
[1758523181427,2.21189049,113160.0,113150.0,4e-05]
[1758523181921,2.13872789,113160.0,113150.0,4e-05]
[1758523182407,2.13852789,113160.0,113150.0,4e-05]
[1758523182632,1.05384462,113160.0,113150.0,4e-05]
[1758523182831,2.13844789,113160.0,113150.0,4e-05]
[1758523183214,2.13840789,113160.0,113150.0,4e-05]
[1758523183416,1.79917573,113160.0,113150.0,4e-05]
[1758523183743,2.17788951,113160.0,113150.0,4e-05]
[1758523183899,2.18081951,113160.0,113150.0,4e-05]
[1758523186352,2.20740136,113160.0,113150.0,4e-05]
[1758523186762,2.20728136,113160.0,113150.0,4e-05]
[1758523186943,2.25728136,113160.0,113150.0,4e-05]
[1758523187179,1.48243809,113160.0,113150.0,4e-05]
[1758523187350,2.13824758,113160.0,113150.0,4e-05]
[1758523187781,2.13724758,113160.0,113150.0,4e-05]
[1758523187921,2.13024758,113160.0,113150.0,4e-05]
[1758523188124,2.13224758,113160.0,113150.0,4e-05]
[1758523188442,1.14511398,113160.0,113150.0,4e-05]
[1758523188687,2.22951725,113160.0,113150.0,4e-05]
[1758523189009,2.27951725,113160.0,113150.0,4e-05]
[1758523189290,2.27751725,113160.0,113150.0,4e-05]
[1758523190365,1.88268758,113160.0,113150.0,4e-05]
[1758523190570,2.19512758,113160.0,113150.0,4e-05]
[1758523191417,1.42028431,113160.0,113150.0,4e-05]
[1758523191610,2.19512758,113160.0,113150.0,4e-05]
[1758523191815,2.14508758,113160.0,113150.0,4e-05]
[1758523192017,1.83568758,113160.0,113150.0,4e-05]
[1758523192217,2.14508758,113160.0,113150.0,4e-05]
[1758523192770,2.23035725,113160.0,113150.0,4e-05]
[1758523192985,1.83568758,113160.0,113150.0,4e-05]
[1758523193170,2.14207758,113160.0,113150.0,0.0021]
[1758523193340,1.80046568,113160.0,113150.0,0.02889]
[1758523193522,2.10978568,113160.0,113150.0,0.02889]
[1758523194243,1.77388383,113160.0,113150.0,0.02889]
[1758523194592,1.99789416,113160.0,113150.0,0.02889]
[1758523195768,1.68861416,113160.0,113150.0,0.02889]
[1758523195981,1.99789416,113160.0,113150.0,0.02889]
[1758523196565,1.99781416,113160.0,113150.0,0.02889]
[1758523197016,1.68861416,113160.0,113150.0,0.02889]
[1758523197166,1.99777416,113160.0,113150.0,0.02889]
[1758523197363,1.34861416,113160.0,113150.0,0.02889]
[1758523197745,0.57377089,113160.0,113150.0,0.02889]
[1758523198124,1.65773416,113160.0,113150.0,0.02889]
[1758523198505,1.65773416,113160.0,113150.0,0.00527]
[1758523198722,1.65773416,113160.0,113150.0,0.02991]
[1758523199646,1.65473416,113160.0,113150.0,0.02991]
[1758523200059,1.65673416,113160.0,113150.0,0.02991]
[1758523200257,1.64473416,113160.0,113150.0,0.02991]
[1758523200577,1.64875416,113160.0,113150.0,0.0021]
[1758523200736,1.64875416,113160.0,113150.0,4e-05]
[1758523201075,1.73402383,113160.0,113150.0,4e-05]
[1758523201325,1.73700383,113160.0,113150.0,4e-05]
[1758523201848,2.1924254,113160.0,113150.0,4e-05]
[1758523204398,2.10715573,113160.0,113150.0,4e-05]
[1758523204604,1.79803573,113160.0,113150.0,4e-05]
[1758523204805,2.10683573,113160.0,113150.0,4e-05]
[1758523205422,1.79803573,113160.0,113150.0,4e-05]
[1758523205629,2.10679573,113160.0,113150.0,4e-05]
[1758523206491,1.79803573,113160.0,113150.0,4e-05]
[1758523206665,2.10679573,113160.0,113150.0,4e-05]
[1758523207624,2.16821941,113160.0,113150.0,4e-05]
[1758523208562,1.02319246,113160.0,113150.0,4e-05]
[1758523208770,2.10671573,113160.0,113150.0,4e-05]
[1758523209635,2.10667573,113160.0,113150.0,4e-05]
[1758523210658,2.15667573,113160.0,113150.0,4e-05]
[1758523211317,2.20267573,113160.0,113150.0,4e-05]
[1758523211548,2.3215317,113160.0,113150.0,4e-05]
[1758523211928,2.3145317,113160.0,113150.0,4e-05]
[1758523212137,2.4216517,113160.0,113150.0,4e-05]
[1758523212345,2.4236517,113160.0,113150.0,4e-05]
[1758523212850,2.48949533,113160.0,113150.0,4e-05]
[1758523213051,2.49549533,113160.0,113150.0,4e-05]
[1758523213300,0.59692404,113140.0,113130.0,1e-08]
[1758523213504,2.62558992,113140.0,113130.0,1e-08]
[1758523213749,2.68090992,113140.0,113130.0,1e-08]
[1758523214363,2.82287018,113140.0,113130.0,1e-08]
[1758523214950,2.82587018,113140.0,113130.0,1e-08]
[1758523215328,2.82887018,113140.0,113130.0,1e-08]
[1758523215534,2.73575018,113140.0,113130.0,1e-08]
[1758523216392,2.71050054,113140.0,113130.0,1e-08]
[1758523216524,2.40606054,113140.0,113130.0,1e-08]
[1758523216727,2.71442054,113140.0,113130.0,1e-08]
[1758523216950,2.71042054,113140.0,113130.0,1e-08]
[1758523217180,2.40206054,113140.0,113130.0,1e-08]
[1758523217327,2.70738054,113140.0,113130.0,1e-08]
[1758523217749,2.70734054,113140.0,113130.0,1e-08]
[1758523218007,0.20695529,113120.0,113110.0,0.07126631]
[1758523218219,0.69824496,113120.0,113110.0,0.07126631]
[1758523218435,0.51681902,113110.0,113100.0,0.05398]
[1758523218736,1.29276869,113110.0,113100.0,0.05706]
[1758523218940,2.06761196,113110.0,113100.0,0.05908]
[1758523219780,2.06757196,113110.0,113100.0,0.05908]
[1758523220048,2.06857196,113110.0,113100.0,0.05908]
[1758523221227,2.08845818,113110.0,113100.0,0.06108]
[1758523221431,1.76037196,113110.0,113100.0,0.06108]
[1758523221642,1.32384059,113110.0,113100.0,0.06108]
[1758523221847,1.79052386,113110.0,113100.0,0.06108]
[1758523222045,2.09868386,113110.0,113100.0,0.03714]
[1758523222250,2.09868386,113110.0,113100.0,0.06108]
[1758523222666,1.79052386,113110.0,113100.0,0.06108]
[1758523222878,2.09864386,113110.0,113100.0,0.06108]
[1758523223044,1.7992423,113110.0,113100.0,0.06108]
[1758523223260,2.1073623,113110.0,113100.0,0.06108]
[1758523223685,2.1073223,113110.0,113100.0,0.06108]
[1758523224353,1.7992423,113110.0,113100.0,0.06108]
[1758523224557,2.1072823,113110.0,113100.0,0.06108]
[1758523225469,1.7992423,113110.0,113100.0,0.06108]
[1758523225669,2.1072423,113110.0,113100.0,0.06108]
[1758523226422,2.19783197,113110.0,113100.0,0.03204]
[1758523227039,2.1093823,113110.0,113100.0,0.03414]
[1758523227396,2.1093823,113110.0,113100.0,0.05772]
[1758523228296,2.1093823,113110.0,113100.0,0.03414]
[1758523228495,2.1093823,113110.0,113100.0,0.03204]
[1758523228706,2.45908691,113110.0,113100.0,0.03204]
[1758523228949,2.48281938,113110.0,113100.0,0.03204]
[1758523229451,2.45591691,113110.0,113100.0,0.03204]
[1758523230059,2.45896691,113110.0,113100.0,0.03204]
[1758523231849,2.84148691,113110.0,113100.0,0.03204]
[1758523234438,2.53360691,113110.0,113100.0,0.03204]
[1758523234638,2.84136691,113110.0,113100.0,0.03204]
[1758523234817,2.92663658,113110.0,113100.0,0.03204]
[1758523235525,0.20698655,113100.0,113090.0,4e-05]
[1758523235727,1.77147687,113100.0,113090.0,4e-05]
[1758523236045,2.19310571,113100.0,113090.0,4e-05]
[1758523236200,2.27837536,113100.0,113090.0,4e-05]
[1758523236590,3.74238518,113100.0,113090.0,4e-05]
[1758523236816,0.54700219,113090.0,113080.0,0.03]
[1758523237010,3.52842956,113090.0,113080.0,0.03]
[1758523237215,1.98005571,113090.0,113080.0,0.03]
[1758523237476,2.06532538,113090.0,113080.0,0.03]
[1758523237688,2.37288538,113090.0,113080.0,0.03]
[1758523238059,2.37288538,113090.0,113080.0,0.032]
[1758523238499,2.3994863,113090.0,113080.0,0.032]
[1758523238654,1.66778729,113090.0,113080.0,0.032]
[1758523239500,1.66774729,113090.0,113080.0,0.032]
[1758523240316,1.36022729,113090.0,113080.0,0.032]
[1758523240914,1.66770729,113090.0,113080.0,0.032]
[1758523241319,1.36022729,113090.0,113080.0,0.032]
[1758523241523,1.66770729,113090.0,113080.0,0.032]
[1758523242969,0.54703347,113070.0,113060.0,0.02677]
[1758523243191,1.66882925,113070.0,113060.0,0.02677]
[1758523243332,2.23491409,113070.0,113060.0,0.0002]
[1758523243989,2.23186409,113070.0,113060.0,0.0002]
[1758523244699,2.23491409,113070.0,113060.0,0.0072]
[1758523245068,2.23491409,113070.0,113060.0,0.0092]
[1758523246382,2.23186409,113070.0,113060.0,0.0092]
[1758523246981,1.67080925,113070.0,113060.0,0.0092]
[1758523247494,1.67080925,113070.0,113060.0,0.0113]
[1758523248337,2.23186409,113070.0,113060.0,0.0113]
[1758523248539,1.59627798,113070.0,113060.0,0.03787]
[1758523248758,1.28899798,113070.0,113060.0,0.03787]
[1758523248943,1.59627798,113070.0,113060.0,0.03787]
[1758523249343,1.67163798,113070.0,113060.0,0.03787]
[1758523249522,1.97891798,113070.0,113060.0,0.03787]
[1758523249719,2.06616765,113070.0,113060.0,0.0113]
[1758523250375,2.06616765,113070.0,113060.0,0.03488]
[1758523250917,2.06616765,113070.0,113060.0,0.0092]
[1758523251188,1.50511281,113070.0,113060.0,0.0092]
[1758523251430,2.06921765,113070.0,113060.0,0.0092]
[1758523251548,2.06616765,113070.0,113060.0,0.0113]
[1758523251748,2.06604765,113070.0,113060.0,0.03488]
[1758523252007,2.06604765,113070.0,113060.0,0.03787]
[1758523252302,1.50499281,113070.0,113060.0,0.03787]
[1758523252504,2.06604765,113070.0,113060.0,0.03488]
[1758523252925,2.06600765,113070.0,113060.0,0.03488]
[1758523253425,2.06600765,113070.0,113060.0,0.0113]
[1758523253632,1.75888765,113070.0,113060.0,0.0092]
[1758523253830,2.06600765,113070.0,113060.0,0.0113]
[1758523254144,2.44868765,113070.0,113060.0,0.0113]
[1758523254558,2.44868765,113070.0,113060.0,0.0092]
[1758523255281,2.14156765,113070.0,113060.0,0.0092]
[1758523255495,2.44860765,113070.0,113060.0,0.0092]
[1758523255907,2.45165765,113070.0,113060.0,0.0092]
[1758523256143,3.01271249,113070.0,113060.0,0.0092]
[1758523256926,0.17691287,113050.0,113040.0,0.05791]
[1758523257114,2.09682647,113050.0,113040.0,0.05989]
[1758523258082,2.09678647,113050.0,113040.0,0.06035922]
[1758523258624,1.49438224,113050.0,113040.0,0.06035922]
[1758523258803,1.25485677,113050.0,113040.0,0.06035922]
[1758523259151,1.25485677,113050.0,113040.0,0.06435922]
[1758523259402,1.37896067,113050.0,113040.0,0.06435922]
[1758523259549,1.68588067,113050.0,113040.0,0.06435922]
[1758523259746,1.68588067,113050.0,113040.0,0.06035922]
[1758523259935,0.48379287,113050.0,113040.0,0.06035922]
[1758523260142,0.48379287,113050.0,113040.0,0.06135922]
[1758523260382,0.91481677,113050.0,113040.0,0.06135922]
[1758523260540,0.60793677,113050.0,113040.0,0.06135922]
[1758523260740,0.17691061,113060.0,113040.0,0.23828774]
[1758523261039,0.17691061,113060.0,113050.0,0.02797]
[1758523261040,0.60792112,113060.0,113050.0,0.02797]
[1758523261248,0.48373722,113060.0,113050.0,0.02797]
[1758523261418,1.34578502,113060.0,113050.0,0.02995]
[1758523261617,1.03894502,113060.0,113050.0,0.02995]
[1758523261827,0.7378639,113060.0,113050.0,0.20686287]
[1758523262027,1.1688878,113060.0,113050.0,0.20686287]
[1758523262434,1.34578502,113060.0,113050.0,0.02995]
[1758523262636,1.34578502,113060.0,113050.0,0.20686287]